fUST/lending_fUST_20251127
["ID","MTS","AMOUNT","RATE_DAILY","PERIOD"]
[394960372,1764209065615,-180.794814,0.00029041,7]
[394960373,1764209065638,-180.794814,0.00029041,7]
[394960374,1764209065660,-180.794814,0.00029041,7]
[394960375,1764209065684,-180.794814,0.00029041,7]
[394960376,1764209065708,-151.0,0.00029315,7]
[394960377,1764209065730,-151.0,0.00029315,7]
[394960378,1764209065755,-292.77,0.000294,14]
[394960379,1764209065784,-1328.24,0.000297,7]
[394960380,1764209065810,-151.0,0.0003,7]
[394960381,1764209065835,-151.0,0.0003,7]
[394960382,1764209065859,-151.0,0.0003,7]
[394960383,1764209065882,-180.794814,0.0003,7]
[394960384,1764209065904,-180.794814,0.0003,7]
[394960385,1764209065927,-180.794814,0.0003,7]
[394960386,1764209065951,-180.794824,0.0003,7]
[394960387,1764209065974,-151.0,0.0003,7]
[394960388,1764209065999,-151.0,0.0003,7]
[394960389,1764209066023,-151.0,0.0003,7]
[394960390,1764209066048,-151.0,0.0003,7]
[394960391,1764209066073,-761.632167,0.0003,7]
[394960392,1764209066099,-761.632167,0.0003,7]
[394960393,1764209066124,-761.632167,0.0003,7]
[394960394,1764209066148,-761.632167,0.0003,7]
[394960395,1764209066171,-303.273968,0.0003,7]
[394960396,1764209066196,-303.273968,0.0003,7]
[394960397,1764209066225,-3065.421225,0.0003,7]
[394960398,1764209066250,-151.0,0.0003,7]
[394960399,1764209066275,-303.273968,0.0003,7]
[394960400,1764209066300,-3065.421225,0.0003,7]
[394960401,1764209066437,-151.0,0.0003,7]
[394960402,1764209066462,-303.273968,0.0003,7]
[394960403,1764209066485,-3065.421225,0.0003,7]
[394960404,1764209066511,-3065.421225,0.0003,7]
[394960405,1764209066535,-1713.623204,0.0003,7]
[394960406,1764209066559,-1713.623204,0.0003,7]
[394960407,1764209066583,-1713.623204,0.0003,7]
[394960408,1764209066609,-1713.623204,0.0003,7]
[394960409,1764209066639,-1165.799999,0.00032,7]
[394960410,1764209066663,-725.4,0.00032,7]
[394960411,1764209066689,-292.77,0.000322,14]
[394960412,1764209066713,-1328.24,0.000324,7]
[394960413,1764209066737,-199.19872,0.00032602,31]
[394960414,1764209066765,-489.364192,0.00032876,31]
[394960415,1764209066788,-489.364192,0.00032876,31]
[394960416,1764209066811,-489.364192,0.00032876,31]
[394960417,1764209066834,-489.364192,0.00032876,31]
[394960418,1764209066860,-151.0,0.00032876,31]
[394960419,1764209066884,-151.0,0.00032876,31]
[394960420,1764209066911,-151.0,0.00032876,31]
[394960421,1764209066935,-151.0,0.00032876,31]
[394960422,1764209066960,-217.596688,0.00032876,31]
[394960423,1764209066986,-151.0,0.00032876,31]
[394960424,1764209067014,-151.0,0.00032876,31]
[394960425,1764209067040,-4540.7,0.00032877,10]
[394960426,1764209067064,-8658.8,0.00032877,10]
[394960427,1764209067088,-8658.8,0.00032877,10]
[394960428,1764209067112,-5772.54,0.00032877,10]
[394960429,1764209067136,-151.0,0.00032877,31]
[394960430,1764209067159,-151.0,0.00032877,31]
[394960431,1764209067183,-151.0,0.00032877,31]
[394960432,1764209067207,-151.0,0.00032877,31]
[394960433,1764209067230,-151.0,0.00032877,31]
[394960434,1764209067254,-151.0,0.00032877,31]
[394960435,1764209067278,-151.0,0.00032877,31]
[394960436,1764209067302,-151.0,0.00032877,31]
[394960437,1764209067326,-152.732889,0.00032877,31]
[394960438,1764209067349,-196.541778,0.00032877,31]
[394960439,1764209067374,-151.0,0.00032877,31]
[394960440,1764209067398,-151.0,0.00032877,31]
[394960441,1764209067422,-151.0,0.00032877,31]
[394960442,1764209067446,-261.762456,0.00032877,31]
[394960443,1764209067471,-500.0,0.00032877,7]
[394960444,1764209067495,-500.0,0.00032877,7]
[394960445,1764209067519,-500.0,0.00032877,7]
[394960446,1764209067542,-500.0,0.00032877,7]
[394960447,1764209067566,-500.0,0.00032877,7]
[394960448,1764209067592,-500.0,0.00032877,7]
[394960449,1764209067616,-450.0,0.00032877,7]
[394960450,1764209067641,-500.0,0.00032877,7]
[394960451,1764209067666,-500.0,0.00032877,7]
[394960452,1764209067690,-500.0,0.00032877,7]
[394960453,1764209067713,-500.0,0.00032877,7]
[394960454,1764209067737,-500.0,0.00032877,7]
[394960455,1764209067766,-500.0,0.00032877,7]
[394960456,1764209067793,-500.0,0.00032877,7]
[394960457,1764209067820,-500.0,0.00032877,7]
[394960458,1764209067847,-500.0,0.00032877,7]
[394960459,1764209067877,-500.0,0.00032877,7]
[394960460,1764209067909,-500.0,0.00032877,7]
[394960461,1764209067937,-500.0,0.00032877,7]
[394960462,1764209067967,-500.0,0.00032877,7]
[394960463,1764209067996,-500.0,0.00032877,7]
[394960464,1764209068027,-500.0,0.00032877,7]
[394960465,1764209068056,-500.0,0.00032877,7]
[394960466,1764209068084,-500.0,0.00032877,7]
[394960467,1764209068113,-500.0,0.00032877,7]
[394960468,1764209068145,-500.0,0.00032877,7]
[394960469,1764209068173,-500.0,0.00032877,7]
[394960470,1764209068203,-500.0,0.00032877,7]
[394960471,1764209068232,-500.0,0.00032877,7]
[394960472,1764209068264,-500.0,0.00032877,7]
[394960473,1764209068294,-500.0,0.00032877,7]
[394960474,1764209068324,-500.0,0.00032877,7]
[394960475,1764209068354,-500.0,0.00032877,7]
[394960476,1764209068383,-500.0,0.00032877,7]
[394960477,1764209068413,-500.0,0.00032877,7]
[394960478,1764209068444,-500.0,0.00032877,7]
[394960479,1764209068473,-500.0,0.00032877,7]
[394960480,1764209068499,-500.0,0.00032877,7]
[394960481,1764209068527,-500.0,0.00032877,7]
[394960482,1764209068559,-500.0,0.00032877,7]
[394960483,1764209068585,-500.0,0.00032877,7]
[394960484,1764209068611,-500.0,0.00032877,7]
[394960485,1764209068640,-500.0,0.00032877,7]
[394960486,1764209068667,-500.0,0.00032877,7]
[394960487,1764209068693,-500.0,0.00032877,7]
[394960488,1764209068720,-500.0,0.00032877,7]
[394960489,1764209068747,-500.0,0.00032877,7]
[394960490,1764209068776,-500.0,0.00032877,7]
[394960491,1764209068804,-633.19143602,0.00032877,7]
[394960492,1764209068837,-500.0,0.00032877,7]
[394960493,1764209068866,-500.0,0.00032877,7]
[394960494,1764209068894,-500.0,0.00032877,7]
[394960495,1764209068921,-500.0,0.00032877,7]
[394960496,1764209068948,-500.0,0.00032877,7]
[394960497,1764209068975,-500.0,0.00032877,7]
[394960498,1764209069004,-500.0,0.00032877,7]
[394960499,1764209069034,-500.0,0.00032877,7]
[394960500,1764209069065,-500.0,0.00032877,7]
[394960501,1764209069094,-500.0,0.00032877,7]
[394960502,1764209069122,-500.0,0.00032877,7]
[394960503,1764209069149,-500.0,0.00032877,7]
[394960504,1764209069176,-500.0,0.00032877,7]
[394960505,1764209069205,-500.0,0.00032877,7]
[394960506,1764209069233,-500.0,0.00032877,7]
[394960507,1764209069260,-500.0,0.00032877,7]
[394960508,1764209069288,-500.0,0.00032877,7]
[394960509,1764209069315,-500.0,0.00032877,7]
[394960510,1764209069343,-300.0,0.00032877,7]
[394960511,1764209069372,-500.0,0.00032877,7]
[394960512,1764209069400,-500.0,0.00032877,7]
[394960513,1764209069429,-754.246212,0.00032877,31]
[394960514,1764209069458,-754.246212,0.00032877,31]
[394960515,1764209069486,-754.246212,0.00032877,31]
[394960516,1764209069514,-754.246212,0.00032877,31]
[394960517,1764209069710,-201.3,0.000331,7]
[394960518,1764209069735,-172.676332,0.0003311,60]
[394960519,1764209069761,-199.0,0.0003315,30]
[394960520,1764209069790,-199.0,0.00034054,30]
[394960521,1764209069816,-1000.0,0.000341,7]
[394960522,1764209069843,-199.0,0.00034958,30]
[394960523,1764209069869,-1000.0,0.000351,7]
[394960524,1764209069893,-199.0,0.00035863,30]
[394960525,1764209069918,-199.0,0.00036767,30]
[394960526,1764209069942,-199.0,0.00037671,30]
[394960527,1764209069967,-151.0,0.00037715,31]
[394960528,1764209069993,-151.0,0.00037715,31]
[394960529,1764209070017,-151.0,0.00037715,31]
[394960530,1764209070043,-151.0,0.00037715,31]
[394960531,1764209070069,-151.0,0.00037715,31]
[394960532,1764209070093,-151.0,0.00037715,31]
[394960533,1764209070119,-151.0,0.00037715,31]
[394960534,1764209070146,-151.0,0.00037715,31]
[394960535,1764209070170,-151.0,0.00037715,31]
[394960536,1764209070195,-151.0,0.00037715,31]
[394960537,1764209070220,-754.246212,0.00037715,31]
[394960538,1764209070246,-754.246212,0.00037715,31]
[394960539,1764209070271,-754.246212,0.00037715,31]
[394960540,1764209070296,-754.246212,0.00037715,31]
[394960541,1764209070332,-489.364192,0.00037843,31]
[394960542,1764209070358,-489.364192,0.00037843,31]
[394960543,1764209070387,-489.364192,0.00037843,31]
[394960544,1764209070412,-489.364192,0.00037843,31]
[394960545,1764209070436,-156.638897,0.00037843,31]
[394960546,1764209070461,-151.0,0.00037843,31]
[394960547,1764209070488,-151.0,0.00037843,31]
[394960548,1764209070513,-151.0,0.00037843,31]
[394960549,1764209070537,-182.949917,0.00037843,31]
[394960550,1764209070561,-151.252787,0.00037843,31]
[394960551,1764209070585,-472.67443586,0.00038347,7]
[394960552,1764209070609,-199.0,0.00038575,30]
[394960553,1764209070632,-2509.92,0.00039,14]
[394960554,1764209070656,-800.0,0.00039053,7]
[394960555,1764209070680,-199.0,0.00039479,30]
[394960556,1764209070703,-340.78915864,0.00039999,31]
[394960557,1764209070727,-500.0,0.00039999,31]
[394960558,1764209070751,-269.62816035,0.00039999,31]
[394960559,1764209070776,-500.0,0.00039999,31]
[394960560,1764209070799,-500.0,0.00039999,7]
[394960561,1764209070826,-500.0,0.00039999,7]
[394960562,1764209070850,-500.0,0.00039999,7]
[394960563,1764209070874,-500.0,0.00039999,7]
[394960564,1764209070898,-500.0,0.00039999,7]
[394960565,1764209070921,-500.0,0.00039999,7]
[394960566,1764209070944,-500.0,0.00039999,7]
[394960567,1764209070967,-500.0,0.00039999,7]
[394960568,1764209070990,-500.0,0.00039999,7]
[394960569,1764209071014,-500.0,0.00039999,7]
[394960570,1764209071037,-500.0,0.00039999,7]
[394960571,1764209071060,-500.0,0.00039999,7]
[394960572,1764209071085,-500.0,0.00039999,7]
[394960573,1764209071109,-500.0,0.00039999,7]
[394960574,1764209071133,-500.0,0.00039999,7]
[394960575,1764209071157,-500.0,0.00039999,7]
[394960576,1764209071188,-500.0,0.00039999,7]
[394960577,1764209071213,-500.0,0.00039999,7]
[394960578,1764209071237,-200.0,0.00039999,31]
[394960579,1764209071262,-500.0,0.00039999,7]
[394960580,1764209071287,-500.0,0.00039999,7]
[394960581,1764209071314,-445.47541367,0.00039999,31]
[394960582,1764209071339,-500.0,0.00039999,7]
[394960583,1764209071365,-500.0,0.00039999,7]
[394960584,1764209071390,-500.0,0.00039999,31]
[394960585,1764209071414,-500.0,0.00039999,7]
[394960586,1764209071443,-500.0,0.00039999,7]
[394960587,1764209071469,-500.0,0.00039999,7]
[394960588,1764209071494,-500.0,0.00039999,7]
[394960589,1764209071523,-500.0,0.00039999,7]
[394960590,1764209071551,-500.0,0.00039999,7]
[394960591,1764209071586,-186.05607347,0.00039999,7]
[394960592,1764209071610,-500.0,0.00039999,7]
[394960593,1764209071635,-500.0,0.00039999,7]
[394960594,1764209071662,-500.0,0.00039999,7]
[394960595,1764209071687,-500.0,0.00039999,7]
[394960596,1764209071714,-500.0,0.00039999,7]
[394960597,1764209071739,-500.0,0.00039999,7]
[394960598,1764209071764,-500.0,0.00039999,7]
[394960599,1764209071792,-500.0,0.00039999,7]
[394960600,1764209071816,-500.0,0.00039999,7]
[394960601,1764209071842,-500.0,0.00039999,7]
[394960602,1764209071866,-500.0,0.00039999,7]
[394960603,1764209071890,-500.0,0.00039999,7]
[394960604,1764209071917,-550.0,0.00039999,31]
[394960605,1764209071942,-500.0,0.00039999,31]
[394960606,1764209071967,-500.0,0.00039999,31]
[394960607,1764209071994,-500.0,0.00039999,7]
[394960608,1764209072124,-500.0,0.00039999,7]
[394960609,1764209072150,-500.0,0.00039999,7]
[394960610,1764209072176,-500.0,0.00039999,7]
[394960611,1764209072202,-500.0,0.00039999,7]
[394960612,1764209072229,-500.0,0.00039999,7]
[394960613,1764209072254,-500.0,0.00039999,7]
[394960614,1764209072279,-500.0,0.00039999,7]
[394960615,1764209072303,-478.75073653,0.00039999,7]
[394960616,1764209072328,-500.0,0.00039999,7]
[394960617,1764209072352,-500.0,0.00039999,7]
[394960618,1764209072377,-500.0,0.00039999,7]
[394960619,1764209072402,-500.0,0.00039999,7]
[394960620,1764209072426,-500.0,0.00039999,7]
[394960621,1764209072451,-526.36200535,0.00039999,31]
[394960622,1764209072475,-500.0,0.00039999,31]
[394960623,1764209072502,-500.0,0.00039999,31]
[394960624,1764209072527,-500.0,0.00039999,31]
[394960625,1764209072551,-570.354604,0.00039999,31]
[394960626,1764209072575,-200.0,0.00039999,31]
[394960627,1764209072600,-800.0,0.00040189,7]
[394960628,1764209072625,-165.807104,0.0004025,31]
[394960629,1764209072649,-199.0,0.00040383,30]
[394960630,1764209072674,-165.807104,0.00041096,31]
[394960631,1764209072697,-199.0,0.00041287,30]
[394960632,1764209072721,-199.0,0.00042191,30]
[394960633,1764209072745,-153.0,0.00042576,30]
[394960634,1764209072772,-153.0,0.0004259,30]
[394960635,1764209072796,-153.0,0.0004259,30]
[394960636,1764209072821,-153.0,0.0004259,30]
[394960637,1764209072846,-153.0,0.00042606,30]
[394960638,1764209072870,-153.0,0.00042606,30]
[394960639,1764209072894,-153.0,0.00042606,30]
[394960640,1764209072919,-153.0,0.00042609,30]
[394960641,1764209072943,-199.0,0.00043095,30]
[394960642,1764209072967,-1982.633421,0.0004318,16]
[394960643,1764209072992,-1000.0,0.000432,16]
[394960644,1764209073017,-1000.0,0.0004322,16]
[394960645,1764209073041,-1000.0,0.0004324,16]
[394960646,1764209073065,-1000.0,0.0004326,16]
[394960647,1764209073090,-1000.0,0.0004328,16]
[394960648,1764209073113,-1140.19588628,0.000433,120]
[394960649,1764209073139,-173.50960669,0.000433,120]
[394960650,1764209073164,-173.50960669,0.000433,120]
[394960651,1764209073188,-1000.0,0.000433,16]
[394960652,1764209073213,-1000.0,0.0004332,16]
[394960653,1764209073236,-1000.0,0.0004334,16]
[394960654,1764209073263,-1000.0,0.0004336,16]
[394960655,1764209073289,-1000.0,0.0004338,16]
[394960656,1764209073315,-1188.772237,0.0004338,16]
[394960657,1764209073340,-1000.0,0.000434,16]
[394960658,1764209073366,-1000.0,0.000434,16]
[394960659,1764209073391,-1501.354435,0.000434,42]
[394960660,1764209073416,-199.0,0.00043999,30]
[394960661,1764209073442,-292.77,0.00044,30]
[394960662,1764209073468,-1140.19588628,0.000446,120]
[394960663,1764209073493,-173.50960669,0.000446,120]
[394960664,1764209073518,-199.0,0.00044904,30]
[394960665,1764209073542,-301.5263242,0.00045258,30]
[394960666,1764209073566,-199.0,0.00045808,30]
[394960667,1764209073590,-1140.19588628,0.000459,120]
[394960668,1764209073615,-199.0,0.00046712,30]
[394960669,1764209073639,-1140.19588628,0.000473,120]
[394960670,1764209073663,-199.0,0.00047616,30]
[394960671,1764209073690,-165.807104,0.00048197,60]
[394960672,1764209073715,-289.75655174,0.0004852,30]
[394960673,1764209073740,-1140.19588628,0.000487,120]
[394960674,1764209073770,-1328.24,0.00049,14]
[394960675,1764209073796,-695.38826503,0.00049433,60]
[394960676,1764209073822,-199.0,0.0005,7]
[394960677,1764209073848,-1140.19588628,0.000502,120]
[394960678,1764209073874,-500.0,0.00050411,60]
[394960679,1764209073899,-1667.0,0.00050619,83]
[394960680,1764209073924,-153.0,0.00050853,120]
[394960681,1764209073949,-153.0,0.00050853,120]
[394960682,1764209073974,-153.0,0.00050853,120]
[394960683,1764209074000,-153.0,0.00050853,120]
[394960684,1764209074026,-153.0,0.00050853,120]
[394960685,1764209074051,-153.0,0.00050853,120]
[394960686,1764209074076,-500.0,0.00051,120]
[394960687,1764209074101,-162.0,0.00051,120]
[394960688,1764209074126,-165.807104,0.00051068,85]
[394960689,1764209074151,-1667.0,0.00051069,85]
[394960690,1764209074176,-165.807104,0.0005107,85]
[394960691,1764209074200,-1667.0,0.00051499,30]
[394960692,1764209074224,-500.0,0.000515,120]
[394960693,1764209074249,-500.0,0.00051507,60]
[394960694,1764209074274,-1140.19588628,0.000517,120]
[394960695,1764209074299,-1667.0,0.00051999,60]
[394960696,1764209074324,-1667.0,0.00051999,120]
[394960697,1764209074350,-2509.92,0.00052,14]
[394960698,1764209074375,-165.807104,0.00052,60]
[394960699,1764209074400,-500.0,0.00052,120]
[394960700,1764209074425,-205.25145449,0.00052054,10]
[394960701,1764209074452,-3000.0,0.00052054,10]
[394960702,1764209074478,-3016.4353417,0.00052054,10]
[394960703,1764209074611,-500.0,0.00052054,10]
[394960704,1764209074636,-500.0,0.00052054,10]
[394960705,1764209074661,-500.0,0.00052054,10]
[394960706,1764209074684,-500.0,0.00052054,10]
[394960707,1764209074708,-500.0,0.00052054,10]
[394960708,1764209074732,-417.31036078,0.00052054,10]
[394960709,1764209074756,-405.57821011,0.00052054,10]
[394960710,1764209074885,19135.020731,0.00052055,7]
[394960711,1764209075096,999.0,0.00032876,120]
[394960712,1764209075147,999.0,0.0003452,120]
[394960713,1764209075180,999.0,0.00036164,120]
[394960714,1764209075218,999.0,0.00037808,120]
[394960715,1764209075258,999.0,0.00039452,120]
[394960716,1764209075303,999.0,0.00041095,120]
[394960717,1764209075339,999.0,0.00042739,120]
[394960718,1764209075382,999.0,0.00044383,120]
[394960719,1764209075422,999.0,0.00046027,120]
[394960720,1764209075457,999.0,0.00047671,120]
[394960721,1764209075550,999.0,0.00049315,120]
[394960722,1764209075581,4810.45,0.00032877,10]
[394960723,1764209075621,999.0,0.00050958,120]
[394960724,1764209075688,253.877389,0.00032602,31]
[394960725,1764209075777,253.877389,0.00037843,31]
[394960726,1764209094998,-150.0,0.00026511,30]
[394960727,1764209095073,-150.0,0.00028921,30]
[394960728,1764209095109,-150.0,0.00031331,30]
[394960729,1764209095138,-253.877389,0.00032602,31]
[394960730,1764209095162,-253.877389,0.00032602,31]
[394960731,1764209095188,-253.877389,0.00032602,31]
[394960732,1764209095219,-150.0,0.00033741,30]
[394960733,1764209095246,-150.0,0.00036151,30]
[394960734,1764209095282,-253.877389,0.00037843,31]
[394960735,1764209095307,-253.877389,0.00037843,31]
[394960736,1764209095332,-253.877389,0.00037843,31]
[394960737,1764209095359,-150.0,0.00038561,30]
[394960738,1764209095386,-400.9278723,0.00039999,31]
[394960739,1764209095413,-153.72580481,0.00039999,31]
[394960740,1764209095439,-500.0,0.00039999,31]
[394960741,1764209095467,-166.07,0.00040971,30]
[394960742,1764209095497,-500.0,0.0005,120]
[394960743,1764209095525,-5000.0,0.000522,120]
[394960744,1764209095551,-210.0,0.0005249,30]
[394960745,1764209095577,-500.0,0.000525,120]
[394960746,1764209095604,-151.0,0.000526,120]
[394960747,1764209095632,-999.0,0.00052602,120]
[394960748,1764209095657,-500.0,0.00052603,60]
[394960749,1764209095682,-151.0,0.00052798,30]
[394960750,1764209095707,-85981.26486655,0.00052888,120]
[394960751,1764209095731,-2000.0,0.000529,120]
[394960752,1764209095756,-200.0,0.00052967,120]
[394960753,1764209095785,-171.94367174,0.00052999,120]
[394960754,1764209095815,-543.50197746,0.00053,120]
[394960755,1764209095842,-2890.47083038,0.00053,120]
[394960756,1764209095870,-4178.353,0.00053,120]
[394960757,1764209095895,-168.0,0.00053,120]
[394960758,1764209095922,-600.0,0.00053,120]
[394960759,1764209095948,-353.54508592,0.00053,120]
[394960760,1764209095975,-500.0,0.00053,120]
[394960761,1764209096000,-1138.0,0.00053,60]
[394960762,1764209096028,-200.0,0.00053079,120]
[394960763,1764209096055,-5000.0,0.000532,120]
[394960764,1764209096083,-1140.19588628,0.000532,120]
[394960765,1764209096395,-475143.1114,0.0005344,30]
[394960766,1764209096423,-151.0,0.0005344,120]
[394960767,1764209096449,-151.0,0.0005344,120]
[394960768,1764209096474,-151.0,0.0005344,120]
[394960769,1764209096499,-489.364192,0.0005344,120]
[394960770,1764209096524,-489.364192,0.0005344,120]
[394960771,1764209096549,-489.364192,0.0005344,120]
[394960772,1764209096574,-489.364192,0.0005344,120]
[394960773,1764209096599,-754.246212,0.0005344,120]
[394960774,1764209096625,-754.246212,0.0005344,120]
[394960775,1764209096651,-754.246212,0.0005344,120]
[394960776,1764209096676,-754.246212,0.0005344,120]
[394960777,1764209096700,-151.0,0.0005344,120]
[394960778,1764209096724,-151.0,0.0005344,120]
[394960779,1764209096749,-151.0,0.0005344,120]
[394960780,1764209096776,-253.877389,0.0005344,120]
[394960781,1764209096801,-253.877389,0.0005344,120]
[394960782,1764209096827,-253.877389,0.0005344,120]
[394960783,1764209096854,-253.877389,0.0005344,120]
[394960784,1764209096878,-100000.0,0.00053495,120]
[394960785,1764209097034,-151.0,0.00053495,120]
[394960786,1764209097059,-151.0,0.00053495,120]
[394960787,1764209097085,-180.205889,0.00053495,120]
[394960788,1764209097115,-151.0,0.00053495,120]
[394960789,1764209097143,-151.0,0.00053495,120]
[394960790,1764209097172,-151.0,0.00053495,120]
[394960791,1764209097197,-225.026187,0.00053495,120]
[394960792,1764209097222,-879.17302565,0.000535,120]
[394960793,1764209097249,-151.0,0.000535,120]
[394960794,1764209097275,-50450.92,0.000536,120]
[394960795,1764209097301,-500.0,0.000536,120]
[394960796,1764209097327,-500.0,0.00053699,60]
[394960797,1764209097354,-3080.55955671,0.00053699,120]
[394960798,1764209097380,-210.0,0.0005379,30]
[394960799,1764209097406,-202.0,0.0005384,91]
[394960800,1764209097432,-20000.0,0.0005388,120]
[394960801,1764209097458,-97090.35277853,0.0005388,30]
[394960802,1764209097484,-807.84418288,0.00053989,120]
[394960803,1764209097514,-1278.0,0.00053989,82]
[394960804,1764209097540,-687.5978294,0.00054,120]
[394960805,1764209097565,-200.0,0.00054,120]
[394960806,1764209097590,-100415.46255101,0.00054,120]
[394960807,1764209097614,-2548.63612728,0.00054,120]
[394960808,1764209097639,-168.0,0.00054,120]
[394960809,1764209097663,-1138.0,0.00054,60]
[394960810,1764209097688,-274.01373484,0.000542,120]
[394960811,1764209097712,-5000.0,0.000542,120]
[394960812,1764209097736,-999.0,0.00054246,120]
[394960813,1764209097761,-151.0,0.000543,120]
[394960814,1764209097786,-200.0,0.000543,120]
[394960815,1764209097810,-200.0,0.000543,120]
[394960816,1764209097835,-320.79017897,0.000543,120]
[394960817,1764209097862,-200.0,0.00054375,120]
[394960818,1764209097886,-200.0,0.00054375,120]
[394960819,1764209097910,-200.0,0.00054375,120]
[394960820,1764209097934,-6764.98096316,0.0005438,120]
[394960821,1764209097960,-2357.11889321,0.00054384,120]
[394960822,1764209097985,-1000.0,0.000544,120]
[394960823,1764209098010,-1000.0,0.000544,120]
[394960824,1764209098036,-412.37,0.000544,120]
[394960825,1764209098060,-1000.0,0.00054443,120]
[394960826,1764209098086,-200.0,0.00054446,120]
[394960827,1764209098112,-2569.1,0.00054521,30]
[394960828,1764209098141,-500.0,0.000546,120]
[394960829,1764209098170,-1207.9120358,0.00054656,120]
[394960830,1764209098196,-240.49,0.000547,120]
[394960831,1764209098220,-2325.94,0.0005479,120]
[394960832,1764209098244,-2000.0,0.0005479,120]
[394960833,1764209098272,-151.0,0.00054793,120]
[394960834,1764209098297,-1301.1,0.00054794,120]
[394960835,1764209098324,-1301.1,0.00054794,120]
[394960836,1764209098348,-1301.1,0.00054794,120]
[394960837,1764209098373,-1301.1,0.00054794,120]
[394960838,1764209098398,-1301.1,0.00054794,120]
[394960839,1764209098422,-1301.1,0.00054794,120]
[394960840,1764209098447,-1301.1,0.00054794,120]
[394960841,1764209098472,-1301.1,0.00054794,120]
[394960842,1764209098496,-1301.1,0.00054794,120]
[394960843,1764209098520,-1301.1,0.00054794,120]
[394960844,1764209098544,-1301.1,0.00054794,120]
[394960845,1764209098568,-1301.1,0.00054794,120]
[394960846,1764209098592,-1301.1,0.00054794,120]
[394960847,1764209098616,-1301.1,0.00054794,120]
[394960848,1764209098640,-1301.1,0.00054794,120]
[394960849,1764209098663,-1301.1,0.00054794,120]
[394960850,1764209098688,-1301.1,0.00054794,120]
[394960851,1764209098723,-1301.1,0.00054794,120]
[394960852,1764209098747,-1301.1,0.00054794,120]
[394960853,1764209098771,-1301.1,0.00054794,120]
[394960854,1764209098800,-1301.1,0.00054794,120]
[394960855,1764209098824,-1301.1,0.00054794,120]
[394960856,1764209098852,-1301.1,0.00054794,120]
[394960857,1764209098876,-1301.1549615,0.00054794,120]
[394960858,1764209099062,153.0,0.00042558,30]
[394960859,1764209100738,5888.0,0.00054795,30]
[394960860,1764209103565,5888.0,0.00054795,30]
[394960861,1764209104912,150.0,0.00054795,30]
[394960862,1764209105842,378.112267,0.00032602,31]
[394960864,1764209203812,-500.0,7.838e-05,2]
[394960865,1764209203989,-483.5207729,7.838e-05,2]
[394960866,1764209204015,-216.0,7.838e-05,2]
[394960867,1764209204041,-500.0,7.977e-05,2]
[394960868,1764209204068,-500.0,7.977e-05,2]
[394960869,1764209204091,-296.20521669,7.977e-05,2]
[394960870,1764209204118,-500.0,7.977e-05,2]
[394960871,1764209204142,-500.0,7.977e-05,2]
[394960872,1764209204165,-496.25598238,7.977e-05,2]